fUST/lending_fUST_20250824
["ID","MTS","AMOUNT","RATE_DAILY","PERIOD"]
[381070583,1755996366587,605.70763185,0.00023353,2]
[381070588,1755996532960,864.62199492,0.000199,2]
[381070589,1755996533347,864.62199475,0.00023353,2]
[381070590,1755996533844,864.62199475,0.00021627,2]
[381070591,1755996545147,-864.62199475,0.0002508,2]
[381070592,1755996545167,-300.2,0.00026,2]
[381070593,1755996554518,5000.0,0.0002501,2]
[381070594,1755996618321,714.55827471,0.00024902,2]
[381070595,1755996618346,4285.44172529,0.00024902,2]
[381070596,1755996618473,187.41557551,0.00019178,2]
[381070632,1755996632019,-864.62199475,0.00026806,6]
[381070634,1755996632028,-160.0,0.00026863,2]
[381070636,1755996632037,-3.63222331,0.00026865,2]
[381070640,1755996632072,-379.97184759,0.00026865,2]
[381070642,1755996632081,-168.17514642,0.00026902,2]
[381070644,1755996632091,-221.7136535,0.000271,2]
[381070646,1755996632100,-300.0,0.00027989,2]
[381070648,1755996632109,-300.0,0.00027989,2]
[381070650,1755996632119,-340.47991067,0.00027989,2]
[381070653,1755996632131,-859.52008933,0.00027989,2]
[381070655,1755996632140,-230.0,0.00027989,2]
[381070656,1755996632150,-300.0,0.00027989,2]
[381070659,1755996632160,-44359.69299429,0.0002799,2]
[381070661,1755996632169,-160.0,0.00028,3]
[381070663,1755996632179,-217.0334113,0.00028,3]
[381070666,1755996632188,-1122.1682207,0.00028201,2]
[381070667,1755996632198,-591.0,0.00028301,2]
[381070670,1755996632208,-45.11424128,0.00028303,7]
[381070711,1755996637951,-545.88575872,0.00028303,7]
[381070712,1755996637960,-864.62199475,0.00028533,10]
[381070713,1755996637970,-9241.0983954,0.000286,2]
[381070714,1755996637980,-160.0,0.00028641,2]
[381070715,1755996637990,-227.64,0.00028656,3]
[381070716,1755996637999,-682.93,0.00028656,3]
[381070717,1755996638009,-156.46,0.00028656,3]
[381070718,1755996638018,-469.4,0.00028656,3]
[381070719,1755996638028,-207.445,0.00028666,20]
[381070720,1755996638037,-121485.079166,0.00028666,2]
[381070721,1755996638046,-64202.2810009,0.00028666,2]
[381070722,1755996638056,-500.0,0.00028673,5]
[381070723,1755996638066,-500.0,0.00028673,5]
[381070724,1755996638081,-500.0,0.00028673,5]
[381070725,1755996638095,-500.0,0.00028673,5]
[381070726,1755996638108,-500.0,0.00028673,5]
[381070727,1755996638119,-500.0,0.00028673,5]
[381070728,1755996638132,-200.0,0.00028673,5]
[381070729,1755996638145,-500.0,0.00028673,5]
[381070730,1755996638158,-500.0,0.00028673,5]
[381070731,1755996638171,-548.3150493,0.00028675,2]
[381070732,1755996638184,-3167.06136175,0.00028676,2]
[381070733,1755996638197,-370000.0,0.00028676,2]
[381070734,1755996638211,-9573.5,0.000287,2]
[381070735,1755996638224,-160.0,0.00028717,2]
[381070736,1755996638235,-529.05847148,0.00028717,2]
[381070737,1755996638248,-417.15472785,0.00028775,2]
[381070738,1755996638260,-844.50316758,0.00028775,2]
[381070739,1755996638274,-376.14580871,0.00028775,2]
[381070740,1755996638287,-151.0,0.00028776,2]
[381070741,1755996638302,-151.0,0.00028776,2]
[381070742,1755996638315,-591.0,0.00028797,2]
[381070743,1755996638327,-160.0,0.00028861,2]
[381070744,1755996638339,-232.37252479,0.00028861,2]
[381070745,1755996638352,-217.0334113,0.00028862,2]
[381070746,1755996638364,-160.0,0.00028862,2]
[381070747,1755996638378,-199.0,0.00028876,120]
[381070748,1755996638392,-199.0,0.00028876,120]
[381070749,1755996638406,-1000.0,0.00028876,2]
[381070750,1755996638420,-405.41000015,0.00028876,2]
[381070751,1755996638431,-9241.09839538,0.00028951,2]
[381070752,1755996638442,-217.0334113,0.00029,10]
[381070753,1755996638453,-160.0,0.00029,10]
[381070754,1755996638465,-217.0334113,0.00029,10]
[381070755,1755996638479,-591.0,0.00029016,7]
[381070756,1755996638493,-591.0,0.00029038,2]
[381070757,1755996638503,-591.0,0.00029065,2]
[381070758,1755996638514,-591.0,0.00029117,7]
[381070759,1755996638526,-168.0,0.00029133,2]
[381070760,1755996638539,-591.0,0.00029149,2]
[381070761,1755996638550,-1000.0,0.00029221,5]
[381070762,1755996638561,-1000.0,0.00029221,5]
[381070763,1755996638572,-1000.0,0.00029221,5]
[381070764,1755996638583,-237.2109271,0.00029246,2]
[381070765,1755996638599,-188.9947005,0.00029246,2]
[381070766,1755996638610,-151.0,0.00029246,2]
[381070767,1755996638623,-500.0,0.00029246,2]
[381070768,1755996638634,-500.0,0.00029246,2]
[381070769,1755996638645,-500.0,0.00029246,2]
[381070770,1755996638656,-151.0,0.00029246,2]
[381070771,1755996638668,-202.08835659,0.00029246,2]
[381070772,1755996638679,-500.0,0.00029246,2]
[381070773,1755996638691,-151.0,0.00029246,2]
[381070774,1755996638702,-278.0907448,0.00029246,2]
[381070775,1755996638713,-151.0,0.00029246,2]
[381070776,1755996638725,-151.0,0.00029246,2]
[381070777,1755996638736,-500.0,0.00029246,2]
[381070778,1755996638748,-151.0,0.00029246,2]
[381070779,1755996638760,-500.0,0.00029246,2]
[381070780,1755996638771,-500.0,0.00029246,2]
[381070781,1755996638784,-151.0,0.00029246,2]
[381070782,1755996638797,-151.0,0.00029246,2]
[381070783,1755996638809,-151.0,0.00029246,2]
[381070784,1755996638821,-151.0,0.00029246,2]
[381070785,1755996638834,-151.27353968,0.00029246,2]
[381070786,1755996638847,-151.0,0.00029246,2]
[381070787,1755996638859,-206.36564155,0.00029246,2]
[381070788,1755996638872,-500.0,0.00029246,2]
[381070789,1755996638884,-500.0,0.00029246,2]
[381070790,1755996638897,-151.0,0.00029246,2]
[381070791,1755996638909,-200.0,0.0002927,23]
[381070792,1755996638921,-151.0,0.0002929,2]
[381070793,1755996638933,-151.0,0.0002929,2]
[381070794,1755996638945,-500.0,0.0002929,2]
[381070795,1755996638961,-500.0,0.0002929,2]
[381070796,1755996638972,-151.0,0.0002929,2]
[381070797,1755996638985,-500.0,0.0002929,2]
[381070798,1755996638998,-500.0,0.0002929,2]
[381070799,1755996639010,-203.71750828,0.0002929,2]
[381070800,1755996639024,-151.000001,0.0002929,2]
[381070801,1755996639036,-151.0,0.0002929,2]
[381070802,1755996639049,-151.31239949,0.0002929,2]
[381070803,1755996639061,-151.0,0.0002929,2]
[381070804,1755996639073,-151.12657096,0.0002929,2]
[381070805,1755996639085,-17355.0113094,0.00029293,2]
[381070806,1755996639097,-9171.7544287,0.00029293,2]
[381070807,1755996639110,-151.0,0.000293,20]
[381070808,1755996639123,-151.0,0.000293,13]
[381070809,1755996639135,-9241.09839538,0.00029302,2]
[381070810,1755996639147,-2513.056123,0.00029302,7]
[381070811,1755996639159,-2513.056123,0.00029302,7]
[381070812,1755996639170,-151.0,0.00029302,7]
[381070813,1755996639182,-2513.056123,0.00029302,7]
[381070814,1755996639193,-151.0,0.00029302,7]
[381070815,1755996639205,-2513.056123,0.00029302,7]
[381070816,1755996639216,-151.0,0.00029302,7]
[381070817,1755996639229,-173.61463414,0.00029303,2]
[381070818,1755996639240,-6619.96429434,0.00029303,2]
[381070819,1755996639251,-151.635013,0.00029303,7]
[381070820,1755996639263,-151.0,0.00029303,7]
[381070821,1755996639275,-151.0,0.00029303,7]
[381070822,1755996639286,-960.565844,0.00029303,7]
[381070823,1755996639298,-960.565844,0.00029303,7]
[381070824,1755996639309,-151.0,0.00029303,7]
[381070825,1755996639321,-151.0,0.00029303,7]
[381070826,1755996639332,-960.565844,0.00029303,7]
[381070827,1755996639345,-960.565844,0.00029303,7]
[381070828,1755996639356,-654.432075,0.00029303,7]
[381070829,1755996639368,-654.432075,0.00029303,7]
[381070830,1755996639381,-451.056145,0.00029303,7]
[381070831,1755996639393,-654.432075,0.00029303,7]
[381070832,1755996639405,-451.056145,0.00029303,7]
[381070833,1755996639416,-654.432075,0.00029303,7]
[381070834,1755996639429,-451.056145,0.00029303,7]
[381070835,1755996639440,-451.056145,0.00029303,7]
[381070836,1755996639453,-255.11619,0.00029303,7]
[381070837,1755996639464,-255.11619,0.00029303,7]
[381070838,1755996639475,-211.928159,0.00029303,7]
[381070839,1755996639487,-255.11619,0.00029303,7]
[381070840,1755996639499,-211.928159,0.00029303,7]
[381070841,1755996639510,-255.11619,0.00029303,7]
[381070843,1755996639522,-211.928159,0.00029303,7]
[381070844,1755996639533,-211.928159,0.00029303,7]
[381070845,1755996639544,-917.815271,0.00029303,7]
[381070846,1755996639556,-917.815271,0.00029303,7]
[381070847,1755996639567,-917.815271,0.00029303,7]
[381070848,1755996639578,-917.815271,0.00029303,7]
[381070849,1755996639589,-191.407562,0.00029303,7]
[381070850,1755996639601,-191.407562,0.00029303,7]
[381070851,1755996639613,-191.407562,0.00029303,7]
[381070852,1755996639626,-155.0,0.00029307,7]
[381070853,1755996639637,-326.0,0.00029307,7]
[381070854,1755996639649,-326.0,0.00029307,7]
[381070855,1755996639660,-326.0,0.00029307,7]
[381070856,1755996639672,-160.0,0.0002933,2]
[381070858,1755996639683,-591.0,0.00029358,7]
[381070861,1755996639695,-500.0,0.00029373,5]
[381070864,1755996639707,-17355.0113094,0.00029392,2]
[381070868,1755996639718,-9171.7544287,0.00029392,2]
[381070871,1755996639730,-151.0,0.00029393,7]
[381070873,1755996639742,-151.0,0.00029393,7]
[381070875,1755996639753,-960.565844,0.00029393,7]
[381070876,1755996639764,-960.565844,0.00029393,7]
[381070877,1755996639778,-151.0,0.00029393,7]
[381070878,1755996639790,-151.0,0.00029393,7]
[381070879,1755996639802,-960.565844,0.00029393,7]
[381070880,1755996639814,-960.565844,0.00029393,7]
[381070881,1755996639826,-654.432075,0.00029393,7]
[381070882,1755996639837,-654.432075,0.00029393,7]
[381070883,1755996639849,-451.056145,0.00029393,7]
[381070884,1755996639861,-654.432075,0.00029393,7]
[381070885,1755996639872,-451.056145,0.00029393,7]
[381070886,1755996639884,-654.432075,0.00029393,7]
[381070887,1755996639895,-451.056145,0.00029393,7]
[381070888,1755996639906,-451.056145,0.00029393,7]
[381070889,1755996639918,-255.11619,0.00029393,7]
[381070890,1755996639929,-255.11619,0.00029393,7]
[381070891,1755996639940,-211.928159,0.00029393,7]
[381070892,1755996639955,-255.11619,0.00029393,7]
[381070893,1755996639967,-211.928159,0.00029393,7]
[381070894,1755996639979,-255.11619,0.00029393,7]
[381070895,1755996639991,-211.928159,0.00029393,7]
[381070896,1755996640002,-211.928159,0.00029393,7]
[381070898,1755996640014,-917.815271,0.00029393,7]
[381070899,1755996640025,-2513.056123,0.00029393,7]
[381070900,1755996640036,-917.815271,0.00029393,7]
[381070901,1755996640048,-2513.056123,0.00029393,7]
[381070903,1755996640059,-917.815271,0.00029393,7]
[381070905,1755996640071,-151.0,0.00029393,7]
[381070907,1755996640083,-917.815271,0.00029393,7]
[381070909,1755996640094,-2513.056123,0.00029393,7]
[381070910,1755996640105,-151.0,0.00029393,7]
[381070911,1755996640117,-191.407562,0.00029393,7]
[381070912,1755996640129,-2513.056123,0.00029393,7]
[381070913,1755996640140,-151.0,0.00029393,7]
[381070914,1755996640151,-191.407562,0.00029393,7]
[381070915,1755996640162,-34710.0226189,0.00029393,2]
[381070916,1755996640172,-18343.5088574,0.00029393,2]
[381070917,1755996640182,-151.0,0.000294,12]
[381070918,1755996640192,-151.0,0.000294,20]
[381070919,1755996640202,-743.842549,0.00029402,7]
[381070920,1755996640211,-743.842549,0.00029402,7]
[381070921,1755996640220,-743.842549,0.00029402,7]
[381070922,1755996640230,-743.842549,0.00029402,7]
[381070923,1755996640240,-743.842549,0.00029402,7]
[381070924,1755996640249,-743.842549,0.00029402,7]
[381070925,1755996640258,-743.842549,0.00029402,7]
[381070926,1755996640267,-743.842549,0.00029402,7]
[381070927,1755996640277,-282.37556,0.00029402,7]
[381070928,1755996640606,-282.37556,0.00029402,7]
[381070929,1755996640627,-151.0,0.00029402,7]
[381070930,1755996640638,-151.0,0.00029402,7]
[381070931,1755996640647,-151.0,0.00029402,7]
[381070932,1755996640657,-151.0,0.00029402,7]
[381070933,1755996640666,-282.37556,0.00029402,7]
[381070934,1755996640675,-282.37556,0.00029402,7]
[381070935,1755996640685,-151.0,0.00029402,7]
[381070936,1755996640694,-151.0,0.00029402,7]
[381070937,1755996640702,-151.0,0.00029402,7]
[381070938,1755996640712,-712.892878,0.00029402,7]
[381070939,1755996640721,-282.37556,0.00029402,7]
[381070940,1755996640730,-712.892878,0.00029402,7]
[381070941,1755996640739,-282.37556,0.00029402,7]
[381070942,1755996640748,-151.0,0.00029402,7]
[381070943,1755996640757,-167.309219,0.00029402,7]
[381070944,1755996640766,-151.0,0.00029402,7]
[381070945,1755996640775,-712.892878,0.00029402,7]
[381070946,1755996640784,-712.892878,0.00029402,7]
[381070947,1755996640793,-167.309219,0.00029402,7]
[381070948,1755996640802,-282.37556,0.00029402,7]
[381070949,1755996640812,-282.37556,0.00029402,7]
[381070950,1755996640822,-712.892878,0.00029402,7]
[381070951,1755996640832,-712.892878,0.00029402,7]
[381070952,1755996640842,-167.309219,0.00029402,7]
[381070953,1755996640852,-167.309219,0.00029402,7]
[381070954,1755996640863,-712.892878,0.00029402,7]
[381070955,1755996640874,-712.892878,0.00029402,7]
[381070956,1755996640883,-167.309219,0.00029402,7]
[381070957,1755996640893,-167.309219,0.00029402,7]
[381070958,1755996640902,-167.309219,0.00029402,7]
[381070959,1755996640912,-167.309219,0.00029402,7]
[381070960,1755996640921,-720.692985,0.00029402,7]
[381070961,1755996640930,-720.692985,0.00029402,7]
[381070962,1755996640940,-151.0,0.00029402,7]
[381070963,1755996640952,-720.692985,0.00029402,7]
[381070964,1755996640961,-234.387578,0.00029402,7]
[381070965,1755996640971,-720.692985,0.00029402,7]
[381070966,1755996640980,-720.692985,0.00029402,7]
[381070967,1755996640991,-151.0,0.00029402,7]
[381070968,1755996641001,-720.692985,0.00029402,7]
[381070969,1755996641011,-156.248367,0.00029402,7]
[381070970,1755996641020,-720.692985,0.00029402,7]
[381070971,1755996641031,-720.692985,0.00029402,7]
[381070972,1755996641041,-542.914185,0.00029402,7]
[381070973,1755996641050,-542.914185,0.00029402,7]
[381070974,1755996641060,-542.914185,0.00029402,7]
[381070975,1755996641069,-542.914185,0.00029402,7]
[381070976,1755996641078,-542.914185,0.00029402,7]
[381070977,1755996641088,-542.914185,0.00029402,7]
[381070978,1755996641098,-151.128324,0.00029402,7]
[381070979,1755996641107,-2484.524905,0.00029402,7]
[381070980,1755996641117,-2484.524905,0.00029402,7]
[381070981,1755996641127,-2484.524905,0.00029402,7]
[381070982,1755996641137,-2484.524905,0.00029402,7]
[381070983,1755996641147,-232.901091,0.00029402,7]
[381070984,1755996641156,-232.901091,0.00029402,7]
[381070985,1755996641165,-2484.524905,0.00029402,7]
[381070986,1755996641175,-2484.524905,0.00029402,7]
[381070987,1755996641184,-232.901091,0.00029402,7]
[381070988,1755996641193,-232.901091,0.00029402,7]
[381070989,1755996641203,-2484.524905,0.00029402,7]
[381070990,1755996641212,-2484.524905,0.00029402,7]
[381070991,1755996641222,-232.901091,0.00029402,7]
[381070992,1755996641231,-232.901091,0.00029402,7]
[381070993,1755996641240,-232.901091,0.00029402,7]
[381070994,1755996641249,-232.901091,0.00029402,7]
[381070995,1755996641259,-232.234617,0.00029402,7]
[381070996,1755996641268,-232.234617,0.00029402,7]
[381070997,1755996641278,-232.234617,0.00029402,7]
[381070998,1755996641287,-232.234617,0.00029402,7]
[381070999,1755996641297,-232.234617,0.00029402,7]
[381071000,1755996641307,-232.234617,0.00029402,7]
[381071001,1755996641316,-232.234617,0.00029402,7]
[381071002,1755996641325,-167.343957,0.00029402,7]
[381071003,1755996641334,-232.234617,0.00029402,7]
[381071004,1755996641343,-232.234617,0.00029402,7]
[381071005,1755996641352,-232.234617,0.00029402,7]
[381071006,1755996641362,-232.234617,0.00029402,7]
[381071007,1755996641372,-232.234617,0.00029402,7]
[381071008,1755996641381,-216.632773,0.00029402,7]
[381071009,1755996641391,-216.632773,0.00029402,7]
[381071010,1755996641401,-216.632773,0.00029402,7]
[381071011,1755996641410,-151.0,0.00029402,7]
[381071012,1755996641419,-194.94553,0.00029402,7]
[381071013,1755996641429,-216.632773,0.00029402,7]
[381071014,1755996641438,-151.0,0.00029402,7]
[381071015,1755996641447,-151.0,0.00029402,7]
[381071016,1755996641456,-151.0,0.00029402,7]
[381071017,1755996641465,-151.0,0.00029402,7]
[381071018,1755996641475,-151.0,0.00029402,7]
[381071019,1755996641484,-151.0,0.00029402,7]
[381071020,1755996641493,-151.0,0.00029402,7]
[381071021,1755996641502,-151.0,0.00029402,7]
[381071022,1755996641512,-151.0,0.00029402,7]
[381071023,1755996641521,-151.0,0.00029402,7]
[381071024,1755996641531,-241.66252,0.00029402,7]
[381071025,1755996641540,-216.632773,0.00029402,7]
[381071026,1755996641549,-216.632773,0.00029402,7]
[381071027,1755996641558,-216.632773,0.00029402,7]
[381071028,1755996641567,-216.632773,0.00029402,7]
[381071029,1755996641576,-216.632773,0.00029402,7]
[381071030,1755996641585,-305.717616,0.00029402,7]
[381071031,1755996641594,-305.717616,0.00029402,7]
[381071032,1755996641604,-216.632773,0.00029402,7]
[381071033,1755996641614,-305.717616,0.00029402,7]
[381071034,1755996641625,-216.632773,0.00029402,7]
[381071035,1755996641635,-216.632773,0.00029402,7]
[381071036,1755996641644,-305.717616,0.00029402,7]
[381071037,1755996641654,-305.717616,0.00029402,7]
[381071038,1755996641663,-305.717616,0.00029402,7]
[381071039,1755996641673,-151.0,0.00029402,7]
[381071040,1755996641682,-305.717616,0.00029402,7]
[381071041,1755996641692,-151.0,0.00029402,7]
[381071042,1755996641701,-305.717616,0.00029402,7]
[381071043,1755996641711,-151.0,0.00029402,7]
[381071044,1755996641722,-305.717616,0.00029402,7]
[381071045,1755996641731,-305.717616,0.00029402,7]
[381071046,1755996641740,-305.717616,0.00029402,7]
[381071047,1755996641750,-305.717616,0.00029402,7]
[381071048,1755996641759,-217.0334113,0.00029402,7]
[381071049,1755996641768,-151.0,0.00029402,7]
[381071050,1755996641777,-151.0,0.00029402,7]
[381071051,1755996641787,-478.26099,0.00029402,7]
[381071052,1755996641796,-151.0,0.00029402,7]
[381071053,1755996641805,-478.26099,0.00029402,7]
[381071054,1755996641815,-478.26099,0.00029402,7]
[381071055,1755996641825,-181.920559,0.00029402,7]
[381071056,1755996641834,-478.26099,0.00029402,7]
[381071057,1755996641843,-478.26099,0.00029402,7]
[381071058,1755996641853,-478.26099,0.00029402,7]
[381071059,1755996641862,-478.26099,0.00029402,7]
[381071060,1755996641872,-478.26099,0.00029402,7]
[381071061,1755996641881,-478.26099,0.00029402,7]
[381071062,1755996641890,-478.26099,0.00029402,7]
[381071063,1755996641899,-478.26099,0.00029402,7]
[381071064,1755996641908,-478.26099,0.00029402,7]
[381071065,1755996641918,-151.0,0.00029402,7]
[381071066,1755996641926,-151.0,0.00029402,7]
[381071067,1755996641935,-151.0,0.00029402,7]
[381071068,1755996641945,-151.0,0.00029402,7]
[381071069,1755996641957,-151.0,0.00029402,7]
[381071070,1755996641966,-151.0,0.00029402,7]
[381071071,1755996641975,-151.0,0.00029402,7]
[381071072,1755996641985,-212.332818,0.00029402,7]
[381071073,1755996641994,-151.0,0.00029402,7]
[381071074,1755996642004,-151.0,0.00029402,7]
[381071075,1755996642013,-151.0,0.00029402,7]
[381071076,1755996642023,-151.0,0.00029402,7]
[381071077,1755996642032,-151.0,0.00029402,7]
[381071078,1755996642041,-151.0,0.00029402,7]
[381071079,1755996642050,-606.579707,0.00029402,7]
[381071080,1755996642059,-151.0,0.00029402,7]
[381071081,1755996642068,-606.579707,0.00029402,7]
[381071082,1755996642078,-151.0,0.00029402,7]
[381071083,1755996642087,-606.579707,0.00029402,7]
[381071084,1755996642096,-151.0,0.00029402,7]
[381071085,1755996642105,-606.579707,0.00029402,7]
[381071086,1755996642114,-606.579707,0.00029402,7]
[381071087,1755996642124,-606.579707,0.00029402,7]
[381071088,1755996642134,-151.0,0.00029402,7]
[381071089,1755996642143,-606.579707,0.00029402,7]
[381071090,1755996642152,-151.0,0.00029402,7]
[381071091,1755996642161,-606.579707,0.00029402,7]
[381071092,1755996642170,-151.0,0.00029402,7]
[381071093,1755996642180,-606.579707,0.00029402,7]
[381071094,1755996642189,-606.579707,0.00029402,7]
[381071095,1755996642198,-606.579707,0.00029402,7]
[381071096,1755996642207,-606.579707,0.00029402,7]
[381071097,1755996642217,-151.0,0.00029402,7]
[381071098,1755996642226,-151.0,0.00029402,7]
[381071099,1755996642235,-151.0,0.00029402,7]
[381071100,1755996642245,-151.0,0.00029402,7]
[381071101,1755996642255,-960.565844,0.00029402,7]
[381071102,1755996642264,-960.565844,0.00029402,7]
[381071103,1755996642274,-960.565844,0.00029402,7]
[381071104,1755996642285,-151.0,0.00029402,7]
[381071105,1755996642294,-960.565844,0.00029402,7]
[381071106,1755996642303,-151.0,0.00029402,7]
[381071107,1755996642313,-192.435499,0.00029402,7]
[381071108,1755996642323,-960.565844,0.00029402,7]
[381071109,1755996642332,-960.565844,0.00029402,7]
[381071110,1755996642341,-960.565844,0.00029402,7]
[381071111,1755996642351,-654.432075,0.00029402,7]
[381071112,1755996642360,-960.565844,0.00029402,7]
[381071113,1755996642370,-654.432075,0.00029402,7]
[381071114,1755996642381,-654.432075,0.00029402,7]
[381071115,1755996642390,-654.432075,0.00029402,7]
[381071116,1755996642399,-451.056145,0.00029402,7]
[381071117,1755996642410,-451.056145,0.00029402,7]
[381071118,1755996642419,-654.432075,0.00029402,7]
[381071119,1755996642429,-654.432075,0.00029402,7]
[381071120,1755996642439,-451.056145,0.00029402,7]
[381071121,1755996642448,-451.056145,0.00029402,7]
[381071122,1755996642457,-654.432075,0.00029402,7]
[381071123,1755996642467,-654.432075,0.00029402,7]
[381071124,1755996642476,-451.056145,0.00029402,7]
[381071125,1755996642487,-451.056145,0.00029402,7]
[381071126,1755996642496,-451.056145,0.00029402,7]
[381071127,1755996642505,-451.056145,0.00029402,7]
[381071128,1755996642514,-232.37252479,0.00029402,7]
[381071129,1755996642524,-255.11619,0.00029402,7]
[381071130,1755996642534,-255.11619,0.00029402,7]
[381071131,1755996642544,-255.11619,0.00029402,7]
[381071132,1755996642553,-255.11619,0.00029402,7]
[381071133,1755996642562,-211.928159,0.00029402,7]
[381071135,1755996642572,-255.11619,0.00029402,7]
[381071137,1755996642581,-211.928159,0.00029402,7]
[381071139,1755996642591,-255.11619,0.00029402,7]
[381071140,1755996642602,-211.928159,0.00029402,7]
[381071141,1755996642612,-211.928159,0.00029402,7]
[381071143,1755996642622,-255.11619,0.00029402,7]
[381071145,1755996642636,-255.11619,0.00029402,7]
[381071147,1755996642646,-211.928159,0.00029402,7]
[381071149,1755996642657,-211.928159,0.00029402,7]
[381071151,1755996642666,-211.928159,0.00029402,7]
[381071152,1755996642676,-211.928159,0.00029402,7]
[381071153,1755996642686,-917.815271,0.00029402,7]
[381071154,1755996642696,-917.815271,0.00029402,7]
[381071155,1755996642706,-2513.056123,0.00029402,7]
[381071156,1755996642718,-2513.056123,0.00029402,7]
[381071157,1755996642729,-2513.056123,0.00029402,7]
[381071158,1755996642740,-917.815271,0.00029402,7]
[381071159,1755996642751,-917.815271,0.00029402,7]
[381071160,1755996642768,-917.815271,0.00029402,7]
[381071161,1755996642779,-2513.056123,0.00029402,7]
[381071162,1755996642791,-917.815271,0.00029402,7]
[381071163,1755996642803,-2513.056123,0.00029402,7]
[381071164,1755996642813,-151.0,0.00029402,7]
[381071165,1755996642823,-2513.056123,0.00029402,7]
[381071166,1755996642832,-151.0,0.00029402,7]
[381071167,1755996642842,-151.0,0.00029402,7]
[381071168,1755996642851,-917.815271,0.00029402,7]
[381071169,1755996642861,-2513.056123,0.00029402,7]
[381071170,1755996642871,-917.815271,0.00029402,7]
[381071171,1755996642884,-2513.056123,0.00029402,7]
[381071172,1755996642894,-151.0,0.00029402,7]
[381071173,1755996642903,-2513.056123,0.00029402,7]
[381071174,1755996642913,-151.0,0.00029402,7]
[381071175,1755996642922,-151.0,0.00029402,7]
[381071176,1755996642932,-191.407562,0.00029402,7]
[381071177,1755996642941,-191.407562,0.00029402,7]
[381071178,1755996642954,-2513.056123,0.00029402,7]
[381071179,1755996642966,-2513.056123,0.00029402,7]
[381071180,1755996642976,-151.0,0.00029402,7]
[381071181,1755996642986,-2513.05611356,0.00029402,7]
[381071182,1755996642997,-151.0,0.00029402,7]
[381071183,1755996643008,-191.407562,0.00029402,7]
[381071184,1755996643018,-191.407562,0.00029402,7]
[381071185,1755996643029,-817976.49023592,0.00029402,20]
[381071186,1755996643039,-15238.89451498,0.00029402,2]
[381071187,1755996643049,-583335.90608331,0.00029402,20]
[381071188,1755996643058,-395.50999033,0.00029402,2]
[381071189,1755996643067,-150.0,0.00029402,2]
[381071190,1755996643077,-250.0,0.00029402,10]
[381071191,1755996643086,-250.0,0.00029402,10]
[381071192,1755996643095,-250.0,0.00029402,10]
[381071193,1755996643105,-250.0,0.00029402,10]
[381071194,1755996643115,-206.157195,0.00029403,7]
[381071195,1755996643125,-206.157195,0.00029403,7]
[381071196,1755996643134,-283.24388,0.00029403,7]
[381071197,1755996643143,-206.157195,0.00029403,7]
[381071198,1755996643153,-206.157195,0.00029403,7]
[381071199,1755996643162,-206.157195,0.00029403,7]
[381071200,1755996643172,-206.157195,0.00029403,7]
[381071201,1755996643181,-206.157195,0.00029403,7]
[381071202,1755996643190,-206.157195,0.00029403,7]
[381071203,1755996643199,-362.332493,0.00029403,7]
[381071205,1755996643208,-362.332493,0.00029403,7]
[381071207,1755996643218,-362.332493,0.00029403,7]
[381071209,1755996643227,-362.332493,0.00029403,7]
[381071210,1755996643236,-362.332493,0.00029403,7]
[381071211,1755996643245,-362.332493,0.00029403,7]